[Event "Late-Titled-Tuesday-Blitz-September-19-2023"]
[Site "Chess.com"]
[Date "2023.09.19"]
[Round "2"]
[White "szefru"]
[Black "komogro"]
[Result "1-0"]
[WhiteElo "2303"]
[BlackElo "2483"]
[TimeControl "180+1"]
[EndTime "14:17:58 PDT"]
[Termination "szefru won on time"]

1. e4 {[%clk 0:03:00.9]} 1... g6 {[%clk 0:03:00]} 2. d4 {[%clk 0:03:00.8]} 2...
Bg7 {[%clk 0:03:00.2]} 3. Nc3 {[%clk 0:03:01.7]} 3... d6 {[%clk 0:03:01]} 4. Be3
{[%clk 0:03:02.2]} 4... a6 {[%clk 0:03:00.8]} 5. Qd2 {[%clk 0:03:02.7]} 5... b5
{[%clk 0:03:01.6]} 6. O-O-O {[%clk 0:03:03.1]} 6... Bb7 {[%clk 0:03:01.8]} 7. f3
{[%clk 0:03:02.8]} 7... e6 {[%clk 0:03:01.5]} 8. g4 {[%clk 0:03:03.1]} 8... h6
{[%clk 0:03:01.1]} 9. h4 {[%clk 0:03:03.2]} 9... Nf6 {[%clk 0:02:59.1]} 10. Nh3
{[%clk 0:03:01.1]} 10... Nbd7 {[%clk 0:02:59.1]} 11. g5 {[%clk 0:03:01]} 11...
hxg5 {[%clk 0:02:58.4]} 12. Bxg5 {[%clk 0:03:00.5]} 12... Nb6 {[%clk 0:02:30.1]}
13. Nf2 {[%clk 0:02:58.9]} 13... Qd7 {[%clk 0:02:26.8]} 14. Ng4 {[%clk
0:02:48.8]} 14... Nxg4 {[%clk 0:02:25.5]} 15. fxg4 {[%clk 0:02:48.8]} 15... b4
{[%clk 0:02:25.8]} 16. Ne2 {[%clk 0:02:33.1]} 16... Bxe4 {[%clk 0:02:23.6]} 17.
Rh3 {[%clk 0:02:29.7]} 17... Qa4 {[%clk 0:02:21.6]} 18. Kb1 {[%clk 0:02:27.1]}
18... Nc4 {[%clk 0:02:15.6]} 19. Qc1 {[%clk 0:02:16.1]} 19... Rb8 {[%clk
0:02:07]} 20. Rb3 {[%clk 0:01:41.1]} 20... Na5 {[%clk 0:01:30.8]} 21. Re3 {[%clk
0:01:34.8]} 21... Bd5 {[%clk 0:01:27.4]} 22. b3 {[%clk 0:01:32.6]} 22... Qd7
{[%clk 0:01:25.9]} 23. Nf4 {[%clk 0:01:28.3]} 23... c6 {[%clk 0:01:20.5]} 24.
Bg2 {[%clk 0:01:11.7]} 24... Bxg2 {[%clk 0:01:13.5]} 25. Nxg2 {[%clk 0:01:12.6]}
25... Rb5 {[%clk 0:01:07.6]} 26. Qd2 {[%clk 0:00:47.9]} 26... Rd5 {[%clk
0:01:05.3]} 27. Nf4 {[%clk 0:00:47]} 27... Rxd4 {[%clk 0:01:04.2]} 28. Qe1
{[%clk 0:00:46.2]} 28... Rxd1+ {[%clk 0:00:58.4]} 29. Qxd1 {[%clk 0:00:47.1]}
29... e5 {[%clk 0:00:53.2]} 30. h5 {[%clk 0:00:41.5]} 30... O-O {[%clk
0:00:47.7]} 31. Nd3 {[%clk 0:00:31.3]} 31... c5 {[%clk 0:00:41.5]} 32. Nxc5
{[%clk 0:00:24.6]} 32... Qc6 {[%clk 0:00:35.7]} 33. Ne4 {[%clk 0:00:24.5]} 33...
d5 {[%clk 0:00:31.7]} 34. Ng3 {[%clk 0:00:19.5]} 34... e4 {[%clk 0:00:26.2]} 35.
h6 {[%clk 0:00:18.7]} 35... Be5 {[%clk 0:00:20.1]} 36. Ne2 {[%clk 0:00:17.5]}
36... Kh7 {[%clk 0:00:18.7]} 37. Bf4 {[%clk 0:00:16.3]} 37... Qf6 {[%clk
0:00:17.3]} 38. Bxe5 {[%clk 0:00:15.9]} 38... Qxe5 {[%clk 0:00:18]} 39. Nd4
{[%clk 0:00:15.6]} 39... Rc8 {[%clk 0:00:16.5]} 40. Qe2 {[%clk 0:00:15]} 40...
Nc6 {[%clk 0:00:16]} 41. Nxc6 {[%clk 0:00:13.6]} 41... Rxc6 {[%clk 0:00:16.7]}
42. Rh3 {[%clk 0:00:13.3]} 42... d4 {[%clk 0:00:14.3]} 43. Qf2 {[%clk
0:00:12.9]} 43... Rc7 {[%clk 0:00:13.9]} 44. Qe1 {[%clk 0:00:12.6]} 44... Qc5
{[%clk 0:00:13.6]} 45. Rh2 {[%clk 0:00:12.2]} 45... e3 {[%clk 0:00:12.4]} 46.
Re2 {[%clk 0:00:11.8]} 46... Qc3 {[%clk 0:00:10.7]} 47. Qd1 {[%clk 0:00:10.4]}
47... a5 {[%clk 0:00:05.8]} 48. g5 {[%clk 0:00:10.7]} 48... a4 {[%clk
0:00:05.9]} 49. bxa4 {[%clk 0:00:09.8]} 49... Ra7 {[%clk 0:00:04.5]} 50. Qf1
{[%clk 0:00:10]} 50... Qc4 {[%clk 0:00:03.8]} 51. Qf6 {[%clk 0:00:08.7]} 1-0

[Event "Late-Titled-Tuesday-Blitz-September-19-2023"]
[Site "Chess.com"]
[Date "2023.09.19"]
[Round "2"]
[White "Bilan_Danila"]
[Black "Laico"]
[Result "0-1"]
[WhiteElo "2553"]
[BlackElo "2390"]
[TimeControl "180+1"]
[EndTime "14:18:02 PDT"]
[Termination "Laico won by resignation"]

1. d4 {[%clk 0:03:00.9]} 1... e6 {[%clk 0:02:58.3]} 2. Nf3 {[%clk 0:03:00.6]}
2... f5 {[%clk 0:02:56.3]} 3. g3 {[%clk 0:03:00]} 3... b6 {[%clk 0:02:56.7]} 4.
Bg2 {[%clk 0:03:00.2]} 4... Bb7 {[%clk 0:02:57.4]} 5. O-O {[%clk 0:03:01.1]}
5... Nf6 {[%clk 0:02:57.8]} 6. c4 {[%clk 0:03:01.8]} 6... Be7 {[%clk 0:02:58.4]}
7. d5 {[%clk 0:03:01.5]} 7... Bd6 {[%clk 0:02:57.6]} 8. Nc3 {[%clk 0:02:55.4]}
8... e5 {[%clk 0:02:57.4]} 9. Nh4 {[%clk 0:02:48.3]} 9... g6 {[%clk 0:02:53.5]}
10. Bg5 {[%clk 0:02:41.6]} 10... O-O {[%clk 0:02:53.1]} 11. Nb5 {[%clk
0:02:30.8]} 11... Qe7 {[%clk 0:02:46.7]} 12. Nxd6 {[%clk 0:02:25]} 12... Qxd6
{[%clk 0:02:47.6]} 13. Qc2 {[%clk 0:02:05.9]} 13... a5 {[%clk 0:02:43.2]} 14. a4
{[%clk 0:02:01]} 14... Na6 {[%clk 0:02:42.6]} 15. b3 {[%clk 0:02:00.6]} 15...
Nc5 {[%clk 0:02:40.2]} 16. Rad1 {[%clk 0:01:51.5]} 16... Rae8 {[%clk 0:02:11.8]}
17. Nf3 {[%clk 0:01:33.6]} 17... Kg7 {[%clk 0:02:02.7]} 18. Bc1 {[%clk 0:01:22]}
18... Nfe4 {[%clk 0:01:39.1]} 19. Ba3 {[%clk 0:01:18]} 19... h6 {[%clk
0:01:33.2]} 20. Nd2 {[%clk 0:01:14.4]} 20... Nf6 {[%clk 0:01:30.4]} 21. Ra1
{[%clk 0:01:01.2]} 21... Kh7 {[%clk 0:01:28.2]} 22. b4 {[%clk 0:00:57.4]} 22...
axb4 {[%clk 0:01:27.9]} 23. Bxb4 {[%clk 0:00:58.3]} 23... Ra8 {[%clk 0:01:25.9]}
24. a5 {[%clk 0:00:58.5]} 24... bxa5 {[%clk 0:01:26]} 25. Rxa5 {[%clk
0:00:59.1]} 25... Rxa5 {[%clk 0:01:25.8]} 26. Bxa5 {[%clk 0:01:00]} 26... Ra8
{[%clk 0:01:22.4]} 27. Bc3 {[%clk 0:00:50.7]} 27... Qe7 {[%clk 0:01:14.6]} 28.
Rb1 {[%clk 0:00:38.4]} 28... d6 {[%clk 0:01:14]} 29. Bb4 {[%clk 0:00:38.1]}
29... Ba6 {[%clk 0:01:12.6]} 30. Bxc5 {[%clk 0:00:34.6]} 30... dxc5 {[%clk
0:01:13.5]} 31. Ra1 {[%clk 0:00:35.2]} 31... Qd6 {[%clk 0:01:05.7]} 32. Ra5
{[%clk 0:00:28.9]} 32... Bb7 {[%clk 0:01:00.8]} 33. Rxa8 {[%clk 0:00:27.8]}
33... Bxa8 {[%clk 0:01:01.7]} 34. Qa4 {[%clk 0:00:26.6]} 34... Bb7 {[%clk
0:01:01.7]} 35. h3 {[%clk 0:00:17.2]} 35... Kg7 {[%clk 0:01:01.4]} 36. Nb3
{[%clk 0:00:16.5]} 36... Qb6 {[%clk 0:00:53.9]} 37. Qa3 {[%clk 0:00:10.8]} 37...
Qb4 {[%clk 0:00:41]} 38. Qxb4 {[%clk 0:00:10.9]} 38... cxb4 {[%clk 0:00:41.9]}
39. Nc5 {[%clk 0:00:10.7]} 39... Bc8 {[%clk 0:00:41.4]} 40. Kf1 {[%clk
0:00:10.8]} 40... Kf8 {[%clk 0:00:36.8]} 41. Ke1 {[%clk 0:00:10.3]} 41... e4
{[%clk 0:00:34.7]} 42. Kd2 {[%clk 0:00:09.7]} 42... Ke7 {[%clk 0:00:34.4]} 43.
Kc2 {[%clk 0:00:09.2]} 43... Kd6 {[%clk 0:00:33.7]} 44. Na4 {[%clk 0:00:09.8]}
44... Bd7 {[%clk 0:00:16.4]} 45. Kb3 {[%clk 0:00:06.4]} 45... Bxa4+ {[%clk
0:00:16.4]} 46. Kxa4 {[%clk 0:00:07.3]} 46... Kc5 {[%clk 0:00:17.1]} 47. Kb3
{[%clk 0:00:05.9]} 47... Nh5 {[%clk 0:00:10.8]} 48. h4 {[%clk 0:00:02.6]} 48...
e3 {[%clk 0:00:09.2]} 49. fxe3 {[%clk 0:00:02]} 49... Nxg3 {[%clk 0:00:09.5]}
50. Bf3 {[%clk 0:00:02.9]} 50... Nf1 {[%clk 0:00:06.2]} 51. e4 {[%clk
0:00:02.8]} 51... fxe4 {[%clk 0:00:05.7]} 52. Bg4 {[%clk 0:00:02.5]} 52... g5
{[%clk 0:00:06.6]} 53. hxg5 {[%clk 0:00:02.3]} 53... hxg5 {[%clk 0:00:07.5]} 54.
Kc2 {[%clk 0:00:02.9]} 54... Ne3+ {[%clk 0:00:07]} 55. Kd2 {[%clk 0:00:03.2]}
55... Nxg4 {[%clk 0:00:07.9]} 56. Kc2 {[%clk 0:00:03.6]} 56... Kxc4 {[%clk
0:00:07.7]} 57. d6 {[%clk 0:00:04.1]} 57... cxd6 {[%clk 0:00:06.7]} 58. e3
{[%clk 0:00:04.1]} 58... Nxe3+ {[%clk 0:00:06.4]} 59. Kd2 {[%clk 0:00:05]} 59...
Nf5 {[%clk 0:00:06.6]} 60. Ke2 {[%clk 0:00:05.9]} 60... d5 {[%clk 0:00:07]} 61.
Kf2 {[%clk 0:00:06.8]} 0-1

[Event "Late-Titled-Tuesday-Blitz-September-19-2023"]
[Site "Chess.com"]
[Date "2023.09.19"]
[Round "2"]
[White "stolencandy13"]
[Black "Zhigalko_Sergei"]
[Result "1/2-1/2"]
[WhiteElo "2557"]
[BlackElo "2834"]
[TimeControl "180+1"]
[EndTime "14:18:04 PDT"]
[Termination "Game drawn by repetition"]

1. d4 {[%clk 0:03:00.9]} 1... Nf6 {[%clk 0:03:00]} 2. Bf4 {[%clk 0:03:00.7]}
2... d5 {[%clk 0:02:53.4]} 3. e3 {[%clk 0:02:59.9]} 3... c5 {[%clk 0:02:53.5]}
4. c3 {[%clk 0:02:59.6]} 4... Nc6 {[%clk 0:02:53.7]} 5. Nd2 {[%clk 0:02:59.6]}
5... Bf5 {[%clk 0:02:49.8]} 6. Qb3 {[%clk 0:02:59.3]} 6... Qd7 {[%clk
0:02:46.3]} 7. Ngf3 {[%clk 0:02:58.9]} 7... c4 {[%clk 0:02:44]} 8. Qd1 {[%clk
0:02:56.2]} 8... e6 {[%clk 0:02:43.5]} 9. Nh4 {[%clk 0:02:49.4]} 9... Bd6 {[%clk
0:02:37.5]} 10. Nxf5 {[%clk 0:02:44.1]} 10... exf5 {[%clk 0:02:38.4]} 11. Qf3
{[%clk 0:02:30.4]} 11... Bxf4 {[%clk 0:02:31.8]} 12. Qxf4 {[%clk 0:02:31.3]}
12... O-O {[%clk 0:02:31.7]} 13. g3 {[%clk 0:02:29.6]} 13... Rfe8 {[%clk
0:02:22.2]} 14. Bh3 {[%clk 0:02:28.6]} 14... g6 {[%clk 0:02:16.8]} 15. O-O
{[%clk 0:02:27.6]} 15... Re7 {[%clk 0:01:50.7]} 16. b3 {[%clk 0:02:03.1]} 16...
b5 {[%clk 0:01:25.8]} 17. bxc4 {[%clk 0:01:48.2]} 17... dxc4 {[%clk 0:01:09.2]}
18. Rfb1 {[%clk 0:01:44.4]} 18... Nd5 {[%clk 0:01:07.5]} 19. Qf3 {[%clk
0:01:23]} 19... Nxc3 {[%clk 0:01:06.8]} 20. Rc1 {[%clk 0:01:23]} 20... Nd5
{[%clk 0:00:26.2]} 21. Bg2 {[%clk 0:01:22.8]} 21... Rd8 {[%clk 0:00:23.6]} 22.
a4 {[%clk 0:01:22.1]} 22... a6 {[%clk 0:00:23.3]} 23. axb5 {[%clk 0:01:14.5]}
23... axb5 {[%clk 0:00:24.2]} 24. Rab1 {[%clk 0:01:14.3]} 24... Ncb4 {[%clk
0:00:22.1]} 25. h4 {[%clk 0:00:45.1]} 25... h5 {[%clk 0:00:21.9]} 26. Qe2 {[%clk
0:00:40]} 26... Na2 {[%clk 0:00:21.8]} 27. Bxd5 {[%clk 0:00:29.1]} 27... Nxc1
{[%clk 0:00:21.6]} 28. Bxf7+ {[%clk 0:00:27.8]} 28... Kxf7 {[%clk 0:00:20.5]}
29. Rxc1 {[%clk 0:00:28]} 29... Qxd4 {[%clk 0:00:20.2]} 30. Nf3 {[%clk
0:00:24.1]} 30... Qf6 {[%clk 0:00:16.8]} 31. Rb1 {[%clk 0:00:18.5]} 31... Rd5
{[%clk 0:00:15.3]} 32. Rxb5 {[%clk 0:00:15.2]} 32... Rxb5 {[%clk 0:00:04.7]} 33.
Qxc4+ {[%clk 0:00:15.3]} 33... Kg7 {[%clk 0:00:05.1]} 34. Qxb5 {[%clk
0:00:15.5]} 34... Rc7 {[%clk 0:00:04.5]} 35. Ng5 {[%clk 0:00:13]} 35... Re7
{[%clk 0:00:03.3]} 36. Qb3 {[%clk 0:00:11.7]} 36... Qd6 {[%clk 0:00:03.1]} 37.
Kh2 {[%clk 0:00:09.8]} 37... Qe5 {[%clk 0:00:02.8]} 38. Qb6 {[%clk 0:00:07.7]}
38... Qf6 {[%clk 0:00:02.6]} 39. Qb5 {[%clk 0:00:07]} 39... Rc7 {[%clk
0:00:02.4]} 40. Qb3 {[%clk 0:00:06.7]} 40... Rd7 {[%clk 0:00:02.5]} 41. Ne6+
{[%clk 0:00:06.5]} 41... Kh8 {[%clk 0:00:02.3]} 42. Ng5 {[%clk 0:00:06.9]} 42...
Qe7 {[%clk 0:00:02.5]} 43. Qb8+ {[%clk 0:00:06.7]} 43... Kg7 {[%clk 0:00:02.5]}
44. Qb6 {[%clk 0:00:07]} 44... Rd6 {[%clk 0:00:02.2]} 45. Qc5 {[%clk 0:00:06.2]}
45... Kg8 {[%clk 0:00:02.4]} 46. Qc4+ {[%clk 0:00:06.2]} 46... Kf8 {[%clk
0:00:02.2]} 47. Qc3 {[%clk 0:00:05.1]} 47... Kg8 {[%clk 0:00:02.4]} 48. Qb2
{[%clk 0:00:05]} 48... Rf6 {[%clk 0:00:02.2]} 49. Qb3+ {[%clk 0:00:05.1]} 49...
Kg7 {[%clk 0:00:02.5]} 50. Qc4 {[%clk 0:00:05]} 50... Qd7 {[%clk 0:00:02.8]} 51.
Qc3 {[%clk 0:00:05.2]} 51... Qc6 {[%clk 0:00:02.5]} 52. Qe5 {[%clk 0:00:04.5]}
52... Qb7 {[%clk 0:00:02.5]} 53. Qd4 {[%clk 0:00:04.5]} 53... Qe7 {[%clk
0:00:02.3]} 54. Qc3 {[%clk 0:00:04.7]} 54... Kg8 {[%clk 0:00:02.7]} 55. Qc4+
{[%clk 0:00:04.9]} 55... Kf8 {[%clk 0:00:02.5]} 56. Qc3 {[%clk 0:00:05.5]} 56...
Kg8 {[%clk 0:00:02.4]} 57. Qc4+ {[%clk 0:00:05.8]} 57... Kg7 {[%clk 0:00:02.7]}
58. Qc3 {[%clk 0:00:06.4]} 58... Qd7 {[%clk 0:00:03.1]} 59. Qb2 {[%clk 0:00:06]}
59... Qe7 {[%clk 0:00:02.2]} 60. Qc3 {[%clk 0:00:05.9]} 1/2-1/2

[Event "Late-Titled-Tuesday-Blitz-September-19-2023"]
[Site "Chess.com"]
[Date "2023.09.19"]
[Round "2"]
[White "egnfanclub"]
[Black "Journey_to_GrandMaster_YT"]
[Result "0-1"]
[WhiteElo "2357"]
[BlackElo "2679"]
[TimeControl "180+1"]
[EndTime "14:18:07 PDT"]
[Termination "Journey_to_GrandMaster_YT won on time"]

1. e4 {[%clk 0:03:00.9]} 1... d6 {[%clk 0:03:00.9]} 2. Nc3 {[%clk 0:03:00.3]}
2... Nf6 {[%clk 0:03:01.3]} 3. f4 {[%clk 0:03:01]} 3... c5 {[%clk 0:02:59.5]} 4.
Nf3 {[%clk 0:03:01.3]} 4... Nc6 {[%clk 0:02:59.8]} 5. Bb5 {[%clk 0:02:58.7]}
5... Bd7 {[%clk 0:02:51]} 6. O-O {[%clk 0:02:52.8]} 6... a6 {[%clk 0:02:50.2]}
7. Bxc6 {[%clk 0:02:51.8]} 7... Bxc6 {[%clk 0:02:50.2]} 8. d3 {[%clk 0:02:52.7]}
8... g6 {[%clk 0:02:44]} 9. Qe1 {[%clk 0:02:50.3]} 9... Bg7 {[%clk 0:02:43.8]}
10. e5 {[%clk 0:02:42.6]} 10... dxe5 {[%clk 0:02:31.4]} 11. fxe5 {[%clk
0:02:40.3]} 11... Nd5 {[%clk 0:02:31.7]} 12. Ne4 {[%clk 0:02:27.5]} 12... Qb6
{[%clk 0:02:21.8]} 13. c4 {[%clk 0:02:10.8]} 13... Nb4 {[%clk 0:02:20.1]} 14.
Nf6+ {[%clk 0:01:37.5]} 14... Bxf6 {[%clk 0:01:47.5]} 15. exf6 {[%clk
0:01:37.1]} 15... e6 {[%clk 0:01:47.1]} 16. Ng5 {[%clk 0:01:20.6]} 16... Bd7
{[%clk 0:00:45.5]} 17. Qe2 {[%clk 0:01:00.7]} 17... h6 {[%clk 0:00:45.3]} 18.
Ne4 {[%clk 0:00:58]} 18... O-O-O {[%clk 0:00:44.5]} 19. Bf4 {[%clk 0:00:56.5]}
19... Bc6 {[%clk 0:00:42.9]} 20. Rfd1 {[%clk 0:00:48.3]} 20... Bxe4 {[%clk
0:00:40]} 21. dxe4 {[%clk 0:00:40.7]} 21... Nc6 {[%clk 0:00:39.2]} 22. Be3
{[%clk 0:00:26.7]} 22... Nd4 {[%clk 0:00:35.8]} 23. Qf2 {[%clk 0:00:26.9]} 23...
e5 {[%clk 0:00:34.4]} 24. Rd2 {[%clk 0:00:22.9]} 24... Qe6 {[%clk 0:00:31.4]}
25. b3 {[%clk 0:00:21.6]} 25... h5 {[%clk 0:00:28.1]} 26. Rad1 {[%clk
0:00:19.2]} 26... Rd6 {[%clk 0:00:27.5]} 27. Rf1 {[%clk 0:00:18.2]} 27... Rhd8
{[%clk 0:00:26.6]} 28. Kh1 {[%clk 0:00:16.4]} 28... b6 {[%clk 0:00:25.5]} 29.
Qg3 {[%clk 0:00:13.7]} 29... Nc6 {[%clk 0:00:23.8]} 30. Rdf2 {[%clk 0:00:13.5]}
30... Rd3 {[%clk 0:00:22.9]} 31. Qg5 {[%clk 0:00:13.3]} 31... Nd4 {[%clk
0:00:19.4]} 32. Bxd4 {[%clk 0:00:13.2]} 32... R8xd4 {[%clk 0:00:19.2]} 33. Re2
{[%clk 0:00:12.2]} 33... Kb7 {[%clk 0:00:17.3]} 34. Qc1 {[%clk 0:00:10.6]} 34...
Qg4 {[%clk 0:00:16.7]} 35. Rfe1 {[%clk 0:00:09.4]} 35... h4 {[%clk 0:00:15.6]}
36. h3 {[%clk 0:00:09.4]} 36... Qg3 {[%clk 0:00:15.1]} 37. Re3 {[%clk 0:00:09]}
37... Qf4 {[%clk 0:00:14.9]} 38. Rxd3 {[%clk 0:00:08.4]} 38... Qxc1 {[%clk
0:00:13.3]} 39. Rxc1 {[%clk 0:00:09.3]} 39... Rxd3 {[%clk 0:00:13.6]} 40. Re1
{[%clk 0:00:09.6]} 40... Kc6 {[%clk 0:00:13.2]} 41. Re2 {[%clk 0:00:09.5]} 41...
Kd6 {[%clk 0:00:13.4]} 42. Kg1 {[%clk 0:00:08.5]} 42... Ke6 {[%clk 0:00:13.8]}
43. Kf2 {[%clk 0:00:06]} 43... Kxf6 {[%clk 0:00:13.3]} 44. Rb2 {[%clk
0:00:06.5]} 44... a5 {[%clk 0:00:12.8]} 45. Ke2 {[%clk 0:00:06.5]} 45... Rg3
{[%clk 0:00:12.5]} 46. Kf2 {[%clk 0:00:07]} 46... Kg5 {[%clk 0:00:12.8]} 47. Rd2
{[%clk 0:00:06.5]} 47... Kf4 {[%clk 0:00:10.5]} 48. Rd7 {[%clk 0:00:06.4]} 48...
f5 {[%clk 0:00:10.1]} 49. exf5 {[%clk 0:00:05.3]} 49... gxf5 {[%clk 0:00:11]}
50. Rd6 {[%clk 0:00:05.3]} 50... Rc3 {[%clk 0:00:09.8]} 51. Rxb6 {[%clk
0:00:04.6]} 51... Rc2+ {[%clk 0:00:10.3]} 52. Kg1 {[%clk 0:00:05.3]} 52... e4
{[%clk 0:00:09.7]} 53. Rh6 {[%clk 0:00:02.9]} 53... e3 {[%clk 0:00:08.3]} 54.
Rxh4+ {[%clk 0:00:02.2]} 54... Ke5 {[%clk 0:00:08.6]} 55. Rh8 {[%clk 0:00:01.6]}
55... Rc1+ {[%clk 0:00:08.9]} 56. Kh2 {[%clk 0:00:01.3]} 56... Kd4 {[%clk
0:00:08.7]} 57. Re8 {[%clk 0:00:01.7]} 57... f4 {[%clk 0:00:07.4]} 0-1

[Event "Late-Titled-Tuesday-Blitz-September-19-2023"]
[Site "Chess.com"]
[Date "2023.09.19"]
[Round "2"]
[White "gabduschew"]
[Black "DefiantChair"]
[Result "0-1"]
[WhiteElo "2377"]
[BlackElo "2606"]
[TimeControl "180+1"]
[EndTime "14:18:09 PDT"]
[Termination "DefiantChair won on time"]

1. g3 {[%clk 0:02:59.6]} 1... d5 {[%clk 0:02:55.6]} 2. Bg2 {[%clk 0:02:59.3]}
2... Nf6 {[%clk 0:02:53.7]} 3. d3 {[%clk 0:02:58.8]} 3... c5 {[%clk 0:02:52.6]}
4. Bg5 {[%clk 0:02:54.6]} 4... e6 {[%clk 0:02:50.7]} 5. c4 {[%clk 0:02:52.4]}
5... d4 {[%clk 0:02:47.1]} 6. Nd2 {[%clk 0:02:42.7]} 6... Nc6 {[%clk 0:02:45.8]}
7. Bxc6+ {[%clk 0:02:39.5]} 7... bxc6 {[%clk 0:02:44.2]} 8. Qa4 {[%clk
0:02:38.6]} 8... Bd7 {[%clk 0:02:41.7]} 9. Ne4 {[%clk 0:02:22.6]} 9... Be7
{[%clk 0:02:38.7]} 10. Bxf6 {[%clk 0:02:21.5]} 10... gxf6 {[%clk 0:02:39.6]} 11.
Nf3 {[%clk 0:02:20.9]} 11... f5 {[%clk 0:02:36]} 12. Ned2 {[%clk 0:02:19.4]}
12... f6 {[%clk 0:02:33.1]} 13. Nb3 {[%clk 0:02:02.9]} 13... e5 {[%clk
0:02:29.3]} 14. Nfd2 {[%clk 0:01:51.5]} 14... Qb6 {[%clk 0:02:26.8]} 15. Rb1
{[%clk 0:01:34.4]} 15... h5 {[%clk 0:02:23.6]} 16. Nf3 {[%clk 0:01:31.3]} 16...
Bd6 {[%clk 0:02:21.4]} 17. Nh4 {[%clk 0:01:29.4]} 17... Kf7 {[%clk 0:02:11.9]}
18. a3 {[%clk 0:01:25.7]} 18... Rhg8 {[%clk 0:02:09.1]} 19. Nd2 {[%clk
0:01:22.9]} 19... Rg4 {[%clk 0:02:07.2]} 20. b4 {[%clk 0:01:17.5]} 20... cxb4
{[%clk 0:01:40.1]} 21. axb4 {[%clk 0:01:15.6]} 21... Qb7 {[%clk 0:01:37.1]} 22.
c5 {[%clk 0:01:11.2]} 22... Bc7 {[%clk 0:01:35.1]} 23. f3 {[%clk 0:01:05.2]}
23... Rxh4 {[%clk 0:01:31.4]} 24. gxh4 {[%clk 0:01:04.6]} 24... Be6 {[%clk
0:01:25.5]} 25. Rg1 {[%clk 0:00:55.3]} 25... a6 {[%clk 0:00:52.7]} 26. Kf2
{[%clk 0:00:34.3]} 26... e4 {[%clk 0:00:42.7]} 27. fxe4 {[%clk 0:00:29.9]} 27...
Bxh2 {[%clk 0:00:42.4]} 28. exf5 {[%clk 0:00:25.4]} 28... Bd5 {[%clk 0:00:37]}
29. Ne4 {[%clk 0:00:20.5]} 29... Bxg1+ {[%clk 0:00:27.9]} 30. Rxg1 {[%clk
0:00:19.9]} 30... Bxe4 {[%clk 0:00:28.8]} 31. dxe4 {[%clk 0:00:19.3]} 31... Rh8
{[%clk 0:00:20.1]} 32. Qb3+ {[%clk 0:00:16.6]} 32... Kf8 {[%clk 0:00:20.5]} 33.
Qe6 {[%clk 0:00:14.2]} 33... Qe7 {[%clk 0:00:12.9]} 34. Qc8+ {[%clk 0:00:12.6]}
34... Qe8 {[%clk 0:00:12.8]} 35. Qc7 {[%clk 0:00:11.5]} 35... Qe7 {[%clk
0:00:09.9]} 36. Qb8+ {[%clk 0:00:09.1]} 36... Qe8 {[%clk 0:00:09.7]} 37. Qd6+
{[%clk 0:00:08.1]} 37... Qe7 {[%clk 0:00:10]} 38. Qxd4 {[%clk 0:00:08.2]} 38...
Ke8 {[%clk 0:00:08.3]} 39. Rg6 {[%clk 0:00:06.3]} 39... Rf8 {[%clk 0:00:08.3]}
40. Kf3 {[%clk 0:00:05.4]} 40... Qc7 {[%clk 0:00:06]} 41. Qd6 {[%clk 0:00:03.3]}
41... Qxd6 {[%clk 0:00:04.9]} 42. cxd6 {[%clk 0:00:03.4]} 42... Kd7 {[%clk
0:00:05.6]} 43. e5 {[%clk 0:00:03.7]} 43... fxe5 {[%clk 0:00:05.3]} 44. Ke4
{[%clk 0:00:04.1]} 44... Rb8 {[%clk 0:00:05.5]} 45. Kxe5 {[%clk 0:00:02.1]}
45... Rb5+ {[%clk 0:00:05.7]} 46. Kf6 {[%clk 0:00:02.2]} 46... Rxb4 {[%clk
0:00:06.1]} 47. Rg7+ {[%clk 0:00:01.6]} 47... Kxd6 {[%clk 0:00:06.6]} 48. Rg8
{[%clk 0:00:01.3]} 48... a5 {[%clk 0:00:06.3]} 0-1